bitfinex-derivatives/quotes_BTCF0:USTF0_20251002
["timestamp","ask_amount","ask_price","bid_price","bid_amount"]
[1759422468958,2.05441539,120070.0,120060.0,0.20922]
[1759422469657,2.08433641,120070.0,120060.0,0.20922]
[1759422470161,2.05441539,120070.0,120060.0,0.20922]
[1759422470363,2.37663957,120070.0,120060.0,0.20922]
[1759422471158,0.97251335,120070.0,120060.0,0.23857]
[1759422471462,1.67637876,120070.0,120060.0,1.28233622]
[1759422471653,1.99826187,120070.0,120060.0,0.96045311]
[1759422471859,1.99826187,120070.0,120060.0,0.63857]
[1759422472160,1.99826187,120070.0,120060.0,0.96045311]
[1759422472659,0.83282656,120070.0,120060.0,1.28233622]
[1759422472856,1.59310656,120070.0,120060.0,1.28233622]
[1759422473060,1.57067917,120070.0,120060.0,1.28233622]
[1759422473462,1.97579438,120070.0,120060.0,0.56045311]
[1759422475167,1.99822177,120070.0,120060.0,0.56045311]
[1759422476168,1.97579438,120070.0,120060.0,0.56045311]
[1759422476368,1.99822177,120070.0,120060.0,0.56045311]
[1759422477564,1.99822177,120070.0,120060.0,0.23857]
[1759422477768,1.99822177,120070.0,120060.0,0.56045311]
[1759422477964,0.89363127,120070.0,120060.0,1.28233622]
[1759422478165,0.81039917,120070.0,120060.0,1.28233622]
[1759422478364,1.21551438,120070.0,120060.0,0.63857]
[1759422478572,1.97571438,120070.0,120060.0,0.56045311]
[1759422479371,1.65383127,120070.0,120060.0,0.88233622]
[1759422479964,1.65383127,120070.0,120060.0,0.56045311]
[1759422480271,1.97571438,120070.0,120060.0,0.56045311]
[1759422480666,1.65383127,120070.0,120060.0,0.56045311]
[1759422480873,1.97571438,120070.0,120060.0,0.56045311]
[1759422482072,1.65383127,120070.0,120060.0,0.56045311]
[1759422482467,1.97571438,120070.0,120060.0,0.23857]
[1759422482670,2.35405198,120070.0,120060.0,0.23857]
[1759422482868,2.75405198,120070.0,120060.0,0.20922]
[1759422483070,2.77647937,120070.0,120060.0,0.20922]
[1759422484367,2.01627937,120070.0,120060.0,0.20922]
[1759422484569,4.46575937,120070.0,120060.0,0.20922]
[1759422485876,0.083239,120060.0,120050.0,0.01722]
[1759422486070,1.26588756,120060.0,120050.0,0.18722]
[1759422486280,1.90965378,120060.0,120050.0,0.18722]
[1759422486774,4.35921378,120060.0,120050.0,0.18722]
[1759422487176,4.36121378,120060.0,120050.0,0.19222]
[1759422487572,4.35921378,120060.0,120050.0,0.18722]
[1759422487779,4.36121378,120060.0,120050.0,0.19122]
[1759422488076,4.36325378,120060.0,120050.0,0.19322]
[1759422489076,4.35925378,120060.0,120050.0,0.18722]
[1759422489277,1.90965378,120060.0,120050.0,0.18722]
[1759422489474,4.35933378,120060.0,120050.0,0.18722]
[1759422489978,4.30287929,120060.0,120050.0,0.18722]
[1759422490274,4.35933378,120060.0,120050.0,0.18722]
[1759422490778,4.35937378,120060.0,120050.0,0.18722]
[1759422494377,4.35937378,120060.0,120050.0,0.16314]
[1759422494580,0.0832598,120030.0,120020.0,0.19717]
[1759422494881,2.26524051,120030.0,120020.0,0.20717]
[1759422495574,2.26530023,120030.0,120020.0,0.20717]
[1759422495771,2.26830023,120030.0,120020.0,0.23317]
[1759422496083,2.27130023,120030.0,120020.0,0.23317]
[1759422496283,2.33835642,120030.0,120020.0,0.23317]
[1759422496883,1.57819642,120030.0,120020.0,0.23317]
[1759422497083,1.63813571,120030.0,120020.0,0.58353311]
[1759422497270,1.19985882,120030.0,120020.0,0.66165]
[1759422497476,1.96001882,120030.0,120020.0,0.66165]
[1759422497674,1.96001882,120030.0,120020.0,0.98353311]
[1759422498080,1.96001882,120030.0,120020.0,0.66165]
[1759422498681,1.63813571,120030.0,120020.0,0.66165]
[1759422498880,1.96001882,120030.0,120020.0,0.66165]
[1759422499080,1.96001882,120030.0,120020.0,0.98353311]
[1759422499281,1.20824745,120030.0,120020.0,0.66165]
[1759422499477,1.96840745,120030.0,120020.0,0.66165]
[1759422502085,2.34674505,120030.0,120020.0,0.23317]
[1759422503980,1.26470194,120030.0,120020.0,0.26165]
[1759422504186,1.64648434,120030.0,120020.0,0.98353311]
[1759422504486,1.96836745,120030.0,120020.0,0.98353311]
[1759422504689,1.20824745,120030.0,120020.0,0.98353311]
[1759422504890,1.64648434,120030.0,120020.0,0.98353311]
[1759422505084,1.96836745,120030.0,120020.0,0.98353311]
[1759422505586,0.88636434,120030.0,120020.0,0.98353311]
[1759422505891,1.64648434,120030.0,120020.0,1.30541622]
[1759422506391,1.64648434,120030.0,120020.0,0.98353311]
[1759422506988,0.88636434,120030.0,120020.0,1.30541622]
[1759422507590,1.64648434,120030.0,120020.0,1.30541622]
[1759422508393,1.64648434,120030.0,120020.0,0.98353311]
[1759422509087,0.88636434,120030.0,120020.0,1.30541622]
[1759422509295,0.88636434,120030.0,120020.0,1.38868302]
[1759422509296,0.00605972,120030.0,120020.0,1.38868302]
[1759422509589,0.76008,120030.0,120020.0,1.44791653]
[1759422510188,1.52602291,120030.0,120020.0,0.58353311]
[1759422510388,1.52602291,120030.0,120020.0,0.26165]
[1759422510593,1.84790602,120030.0,120020.0,0.26165]
[1759422510990,1.52602291,120030.0,120020.0,0.26165]
[1759422511193,1.84790602,120030.0,120020.0,0.66165]
[1759422511396,1.84790602,120030.0,120020.0,0.26165]
[1759422514098,1.90436051,120030.0,120020.0,0.26165]
[1759422514289,1.97143002,120030.0,120020.0,0.26165]
[1759422515698,1.3276638,120030.0,120020.0,0.26165]
[1759422515897,1.97143002,120030.0,120020.0,0.26165]
[1759422517997,3.66131002,120030.0,120020.0,0.26165]
[1759422519895,3.59127818,120030.0,120020.0,0.23317]
[1759422520095,3.64773267,120030.0,120020.0,0.23317]
[1759422520296,3.6688662,120030.0,120020.0,0.23317]
[1759422520900,3.6688662,120030.0,120020.0,0.26198]
[1759422521101,3.64773267,120030.0,120020.0,0.26198]
[1759422521688,3.64773267,120030.0,120020.0,0.23317]
[1759422522700,3.00396645,120030.0,120020.0,0.23317]
[1759422522898,1.19781267,120030.0,120020.0,0.23317]
[1759422523094,0.49759196,120030.0,120020.0,0.98386311]
[1759422523294,1.25759196,120030.0,120020.0,0.66198]
[1759422523498,1.57947507,120030.0,120020.0,0.98386311]
[1759422523702,1.57947507,120030.0,120020.0,0.26198]
[1759422524797,1.95781267,120030.0,120020.0,0.26198]
[1759422525100,3.64773267,120030.0,120020.0,0.26198]
[1759422525300,3.32584956,120030.0,120020.0,0.26198]
[1759422525794,3.64773267,120030.0,120020.0,0.26198]
[1759422526303,3.64773267,120030.0,120020.0,0.23317]
[1759422528202,1.19781267,120030.0,120020.0,0.23317]
[1759422528403,1.19781267,120030.0,120020.0,0.26198]
[1759422528404,3.34696786,120030.0,120020.0,0.26198]
[1759422528904,0.89704786,120030.0,120020.0,0.26198]
[1759422529104,1.65700786,120030.0,120020.0,0.26198]
[1759422530207,1.63588956,120030.0,120020.0,0.26198]
[1759422530909,0.87592956,120030.0,120020.0,0.26198]
[1759422531108,1.63588956,120030.0,120020.0,0.26198]
[1759422531310,1.25755196,120030.0,120020.0,0.98386311]
[1759422531508,1.57943507,120030.0,120020.0,0.98386311]
[1759422532207,1.57956388,120030.0,120020.0,0.66198]
[1759422532402,0.81960388,120030.0,120020.0,0.66198]
[1759422532603,1.57956388,120030.0,120020.0,0.66198]
[1759422533107,0.81960388,120030.0,120020.0,0.66198]
[1759422533300,1.57956388,120030.0,120020.0,0.66198]
[1759422533908,1.25755196,120030.0,120020.0,0.66198]
[1759422534908,1.57956388,120030.0,120020.0,0.66198]
[1759422536003,0.81960388,120030.0,120020.0,0.66198]
[1759422536205,1.57952388,120030.0,120020.0,0.66198]
[1759422536399,0.81960388,120030.0,120020.0,0.66198]
[1759422536612,1.57952388,120030.0,120020.0,0.66198]
[1759422538606,1.25751196,120030.0,120020.0,0.66198]
[1759422538811,1.57952388,120030.0,120020.0,0.66198]
[1759422539209,1.60073223,120030.0,120020.0,0.66198]
[1759422541709,0.84081223,120030.0,120020.0,0.66198]
[1759422541909,1.60069223,120030.0,120020.0,0.66198]
[1759422542516,1.27868031,120030.0,120020.0,0.66198]
[1759422542715,1.60069223,120030.0,120020.0,0.66198]
[1759422543317,0.84081223,120030.0,120020.0,0.66198]
[1759422543511,1.60069223,120030.0,120020.0,0.66198]
[1759422543716,0.53233916,120030.0,120020.0,0.58399192]
[1759422543915,1.29217916,120030.0,120020.0,0.58399192]
[1759422544516,0.44907786,120030.0,120020.0,1.06726022]
[1759422544817,0.75984,120030.0,120020.0,1.06726022]
[1759422545206,0.3608,120040.0,120030.0,0.0832613]
[1759422545517,0.45247666,120050.0,120040.0,0.1315244]
[1759422545708,1.23347497,120050.0,120040.0,0.66353632]
[1759422545907,0.3608,120050.0,120040.0,1.06353632]
[1759422546109,0.4489588,120070.0,120060.0,0.04827]
[1759422546305,0.4489588,120070.0,120060.0,0.58028192]
[1759422546306,0.8467075,120070.0,120060.0,0.58028192]
[1759422546513,0.8255556,120070.0,120060.0,0.25827]
[1759422546711,1.1863556,120070.0,120060.0,0.25827]
[1759422547010,1.2695892,120070.0,120060.0,0.58028192]
[1759422547211,1.2695892,120070.0,120060.0,0.25827]
[1759422547509,1.59160112,120070.0,120060.0,0.25827]
[1759422547711,1.59986222,120070.0,120060.0,0.25827]
[1759422548715,1.2778503,120070.0,120060.0,0.25827]
[1759422549018,1.59986222,120070.0,120060.0,0.25827]
[1759422549422,1.60186222,120070.0,120060.0,0.26927]
[1759422549717,1.59986222,120070.0,120060.0,0.25827]
[1759422549921,1.51862862,120070.0,120060.0,0.26927]
[1759422550309,1.2798503,120070.0,120060.0,0.26927]
[1759422551017,1.2808503,120070.0,120060.0,0.27427]
[1759422551213,1.60586222,120070.0,120060.0,0.29027]
[1759422551920,1.2838503,120070.0,120060.0,0.29027]
[1759422552221,1.2006167,120070.0,120060.0,0.29027]
[1759422552827,1.2838503,120070.0,120060.0,0.29027]
[1759422553209,1.2838503,120070.0,120060.0,0.3021514]
[1759422554721,1.66231671,120070.0,120060.0,0.3021514]
[1759422556726,0.90247671,120070.0,120060.0,0.3021514]
[1759422556917,1.66203671,120070.0,120060.0,0.3021514]
[1759422557726,0.49723119,120070.0,120060.0,0.70740382]
[1759422557918,1.25675119,120070.0,120060.0,0.3853919]
[1759422558119,1.25675119,120070.0,120060.0,0.70740382]
[1759422559019,1.25671119,120070.0,120060.0,0.70740382]
[1759422559425,0.49723119,120070.0,120060.0,0.70740382]
[1759422559724,1.25671119,120070.0,120060.0,0.70740382]
[1759422560022,0.49723119,120070.0,120060.0,0.70740382]
[1759422560516,0.006,120070.0,120060.0,1.79021574]
[1759422560721,0.76548,120070.0,120060.0,1.42941574]
[1759422560921,0.76548,120070.0,120060.0,1.79021574]
[1759422561124,0.50962244,120090.0,120080.0,0.1314967]
[1759422561325,1.32551693,120090.0,120080.0,0.58216332]
[1759422561521,0.96471693,120090.0,120080.0,0.66539002]
[1759422561723,0.20527693,120090.0,120080.0,0.66539002]
[1759422562018,0.96471693,120090.0,120080.0,0.66539002]
[1759422562625,1.32551693,120090.0,120080.0,0.66539002]
[1759422562925,1.33380656,120090.0,120080.0,0.66539002]
[1759422563629,1.33580656,120090.0,120080.0,0.2701514]
[1759422563927,0.97500656,120090.0,120080.0,0.67539002]
[1759422564327,0.01028963,120090.0,120080.0,0.67539002]
[1759422564530,0.76968963,120090.0,120080.0,1.07539002]
[1759422564728,1.21680254,120090.0,120080.0,0.99216332]
[1759422565124,1.27325703,120090.0,120080.0,0.2701514]
[1759422565424,1.27325703,120090.0,120080.0,0.3533781]
[1759422565626,0.51385703,120090.0,120080.0,0.3533781]
[1759422565924,1.27321703,120090.0,120080.0,0.67539002]
[1759422567119,1.18999733,120090.0,120080.0,0.67539002]
[1759422567728,1.27321703,120090.0,120080.0,0.67539002]
[1759422567931,0.00509321,120090.0,120080.0,0.67539002]
[1759422568130,0.76441321,120090.0,120080.0,0.67539002]
[1759422568732,0.76437321,120090.0,120080.0,1.07539002]
[1759422568932,0.00509321,120090.0,120080.0,1.43619002]
[1759422569130,0.3608,120100.0,120090.0,0.1297797]
[1759422569431,1.2032928,120100.0,120090.0,0.66367302]
[1759422569726,1.26824396,120100.0,120090.0,0.58045332]
[1759422569927,1.26824396,120100.0,120090.0,0.66367302]
[1759422572134,1.27024396,120100.0,120090.0,0.66967302]
[1759422572334,1.27024396,120100.0,120090.0,0.67667302]
[1759422572730,1.27224396,120100.0,120090.0,0.67667302]
[1759422573531,1.18903116,120100.0,120090.0,0.67667302]
[1759422573737,1.27224396,120100.0,120090.0,0.59345332]
[1759422573936,1.2932503,120100.0,120090.0,0.59345332]
[1759422574137,1.2932503,120100.0,120090.0,0.67667302]
[1759422574537,1.61526222,120100.0,120090.0,0.2714414]
[1759422574739,1.61526222,120100.0,120090.0,0.3546611]
[1759422574931,1.2932503,120100.0,120090.0,0.3546611]
[1759422576539,1.61526222,120100.0,120090.0,0.3546611]
[1759422577742,1.61526222,120100.0,120090.0,0.2714414]
[1759422578136,1.2932503,120100.0,120090.0,0.2714414]
[1759422579838,1.61526222,120100.0,120090.0,0.2714414]
[1759422580039,1.55880773,120100.0,120090.0,0.2714414]
[1759422580240,1.61526222,120100.0,120090.0,0.2714414]
[1759422581645,1.2932503,120100.0,120090.0,0.2714414]
[1759422581841,2.01526222,120100.0,120090.0,0.2429914]
[1759422582242,2.03770542,120100.0,120090.0,0.2248814]
[1759422582434,1.63770542,120100.0,120090.0,0.2248814]
[1759422582637,2.06762644,120100.0,120090.0,0.2248814]
[1759422582840,1.64518324,120100.0,120090.0,0.2248814]
[1759422583037,1.66014376,120100.0,120090.0,0.2248814]
[1759422583242,1.66014376,120100.0,120090.0,0.213]
[1759422583744,0.93075374,120100.0,120090.0,0.213]
[1759422583947,3.37871374,120100.0,120090.0,0.213]
[1759422584149,3.34882376,120100.0,120090.0,0.213]
[1759422584345,0.90086376,120100.0,120090.0,0.213]
[1759422584650,3.37871548,120100.0,120090.0,0.213]
[1759422586253,3.37875548,120100.0,120090.0,0.213]
[1759422587244,0.93075548,120100.0,120090.0,0.213]
[1759422587449,0.93075548,120100.0,120090.0,0.23111]
[1759422587450,3.37879548,120100.0,120090.0,0.23111]
[1759422588050,0.93075548,120100.0,120090.0,0.23111]
[1759422588249,3.37879548,120100.0,120090.0,0.23111]
[1759422589149,0.93075548,120100.0,120090.0,0.23111]
[1759422589350,3.37883548,120100.0,120090.0,0.23111]
[1759422589849,3.33395394,120100.0,120090.0,0.23111]
[1759422591154,0.88587394,120100.0,120090.0,0.23111]
[1759422591452,2.57495394,120100.0,120090.0,0.25956]
[1759422591647,3.33395394,120100.0,120090.0,0.25956]
[1759422591847,1.64487394,120100.0,120090.0,0.25956]
[1759422592849,0.88587394,120100.0,120090.0,0.25956]
[1759422593154,1.6672956,120100.0,120090.0,0.23111]
[1759422593454,1.6672956,120100.0,120090.0,0.25956]
[1759422593953,1.64487394,120100.0,120090.0,0.23111]
[1759422594451,1.98873291,120100.0,120090.0,0.23111]
[1759422595152,1.95884119,120100.0,120090.0,0.23111]
[1759422595752,2.68056634,120100.0,120090.0,0.23111]
[1759422595956,4.04792119,120100.0,120090.0,0.23111]
[1759422596555,1.59984119,120100.0,120090.0,0.23111]
[1759422596756,4.04796119,120100.0,120090.0,0.23111]
[1759422597258,1.59984119,120100.0,120090.0,0.25956]
[1759422597458,4.04796119,120100.0,120090.0,0.25956]
[1759422598045,4.04796119,120100.0,120090.0,0.23111]
[1759422598046,4.36968634,120100.0,120090.0,0.23111]
[1759422598251,4.34726575,120100.0,120090.0,0.23111]
[1759422598956,4.36968438,120100.0,120090.0,0.23111]
[1759422600259,4.37715747,120100.0,120090.0,0.23111]
[1759422601357,4.37716154,120100.0,120090.0,0.23111]
[1759422601548,4.42204308,120100.0,120090.0,0.23111]
[1759422601755,4.39214729,120100.0,120090.0,0.23111]
[1759422605955,1.94402729,120100.0,120090.0,0.23111]
[1759422606163,1.65220978,120100.0,120090.0,0.25978]
[1759422606459,1.60732824,120100.0,120090.0,0.25978]
[1759422606653,4.05540824,120100.0,120090.0,0.25978]
[1759422606854,2.89652824,120100.0,120090.0,0.25978]
[1759422607159,3.65540824,120100.0,120090.0,0.25978]
[1759422609856,3.59895375,120100.0,120090.0,0.25978]
[1759422610057,3.65540824,120100.0,120090.0,0.25978]
[1759422610258,3.65536824,120100.0,120090.0,0.25978]
[1759422611157,3.67034214,120100.0,120090.0,0.23111]
[1759422613666,3.6254606,120100.0,120090.0,0.23111]
[1759422614266,3.6254606,120100.0,120090.0,0.25978]
[1759422614267,3.6254206,120100.0,120090.0,0.25978]
[1759422614867,1.22236783,120100.0,120090.0,0.25978]
[1759422615067,3.67036783,120100.0,120090.0,0.25978]
[1759422615363,1.98116783,120100.0,120090.0,0.25978]
[1759422615561,3.67032783,120100.0,120090.0,0.25978]
[1759422618260,1.22236783,120100.0,120090.0,0.25978]
[1759422618457,3.67028783,120100.0,120090.0,0.25978]
[1759422618669,1.22236783,120100.0,120090.0,0.25978]
[1759422619170,0.52246304,120100.0,120090.0,0.98150515]
[1759422619369,0.55242205,120100.0,120090.0,0.98150515]
[1759422619568,0.55242156,120100.0,120090.0,0.98150515]
[1759422619862,0.50747433,120100.0,120090.0,0.98150515]
[1759422620069,0.42426153,120100.0,120090.0,0.98150515]
[1759422620270,0.42426153,120100.0,120090.0,1.3032303]
[1759422620271,0.41676998,120100.0,120090.0,1.3032303]
[1759422620466,1.17548998,120100.0,120090.0,0.98150515]
[1759422620856,1.17548998,120100.0,120090.0,1.06472485]
[1759422620857,1.15302301,120100.0,120090.0,1.06472485]
[1759422621778,1.18298153,120100.0,120090.0,1.06472485]
[1759422622164,1.26619423,120100.0,120090.0,1.06472485]
[1759422622367,0.84461786,120100.0,120090.0,1.06472485]
[1759422622671,0.92783056,120100.0,120090.0,1.06472485]
[1759422623266,0.16911056,120100.0,120090.0,1.06472485]
[1759422623471,0.13915204,120100.0,120090.0,1.38645]
[1759422623771,0.89681756,120100.0,120090.0,1.38645]
[1759422624470,0.13817756,120100.0,120090.0,1.38645]
[1759422624667,0.89677756,120100.0,120090.0,1.38645]
[1759422624865,0.13817756,120100.0,120090.0,1.38645]
[1759422625066,0.88924496,120100.0,120090.0,1.38645]
[1759422626472,0.91920348,120100.0,120090.0,1.38645]
[1759422627371,0.88924496,120100.0,120090.0,1.38645]
[1759422628270,0.13059913,120100.0,120090.0,0.7429997]
[1759422628575,0.88911913,120100.0,120090.0,1.38645]
[1759422629267,0.88911913,120100.0,120090.0,0.7429997]
[1759422629467,0.88911913,120100.0,120090.0,1.38645]
[1759422629870,0.04738643,120100.0,120090.0,1.74725]
[1759422630076,0.80586643,120100.0,120090.0,1.74725]
[1759422630574,0.88907913,120100.0,120090.0,1.74725]
[1759422631769,0.8456927,120100.0,120090.0,1.74725]
[1759422631974,0.76248,120100.0,120090.0,1.74725]
[1759422632473,0.0832123,120110.0,120100.0,0.0832127]
[1759422632670,0.86258231,120110.0,120100.0,0.942093]
[1759422632868,0.01572231,120110.0,120100.0,1.66381815]
[1759422633073,0.083205,120120.0,120110.0,0.1286358]
[1759422633376,0.841605,120120.0,120110.0,0.9620861]
[1759422633870,0.083205,120120.0,120110.0,0.9620861]
[1759422634077,0.841605,120120.0,120110.0,0.9620861]
[1759422634872,0.002,120120.0,120110.0,0.9740861]
[1759422635075,0.76036,120120.0,120110.0,0.9740861]
[1759422635265,0.75836,120120.0,120110.0,0.9620861]
[1759422635463,0.75936,120120.0,120110.0,0.9660861]
[1759422635666,0.8425589,120120.0,120110.0,0.9660861]
[1759422636170,0.8425589,120120.0,120110.0,1.3660861]
[1759422636369,0.49319679,120140.0,120130.0,0.083192]
[1759422636569,1.30797098,120140.0,120130.0,0.9820723]
[1759422636776,1.22471649,120140.0,120130.0,0.9820723]
[1759422636979,1.49318999,120150.0,120140.0,0.128615]
[1759422637275,2.30796448,120150.0,120140.0,0.9820653]
[1759422637476,2.19798598,120150.0,120140.0,0.9820653]
[1759422637680,2.14974896,120150.0,120140.0,0.9820653]
[1759422637878,2.12733747,120150.0,120140.0,0.9820653]
[1759422638377,2.15413747,120150.0,120140.0,0.338615]
[1759422638567,2.12733747,120150.0,120140.0,0.338615]
[1759422638774,2.12733747,120150.0,120140.0,0.9820653]
[1759422638975,2.15413747,120150.0,120140.0,0.9820653]
[1759422639275,2.15613747,120150.0,120140.0,0.9920653]
[1759422639976,1.79533747,120150.0,120140.0,0.9920653]
[1759422640370,1.03701747,120150.0,120140.0,0.9920653]
[1759422640578,1.787,120150.0,120140.0,0.9920653]
[1759422640882,1.7602,120150.0,120140.0,0.9920653]
[1759422641265,1.7602,120150.0,120140.0,1.3528653]
[1759422641872,1.76016,120150.0,120140.0,1.3528653]
[1759422642474,1.75816,120150.0,120140.0,1.3428653]
[1759422642879,1.75812,120150.0,120140.0,2.06459045]
[1759422643074,1.0,120150.0,120140.0,2.06459045]
[1759422644178,1.002,120150.0,120140.0,2.06759045]
[1759422644875,1.002,120150.0,120140.0,2.82563045]
[1759422645077,1.10601058,120150.0,120140.0,2.82563045]
[1759422645473,1.02283248,120150.0,120140.0,2.82563045]
[1759422645674,1.02283248,120150.0,120140.0,2.06759045]
[1759422645978,1.02283248,120150.0,120140.0,2.5039053]
[1759422646278,1.10601058,120150.0,120140.0,1.7458653]
[1759422646579,1.10601058,120150.0,120140.0,2.5038653]
[1759422646778,1.13281058,120150.0,120140.0,0.702415]
[1759422646980,1.13281058,120150.0,120140.0,1.3458653]
[1759422647474,1.10601058,120150.0,120140.0,1.3458653]
[1759422647681,1.10601058,120150.0,120140.0,0.702415]
[1759422648279,1.10601058,120150.0,120140.0,1.3458653]
[1759422648679,1.13281058,120150.0,120140.0,1.3458653]
[1759422649080,1.10601058,120150.0,120140.0,1.3458653]
[1759422649684,1.10601058,120150.0,120140.0,0.702415]
[1759422649885,1.10601058,120150.0,120140.0,1.3458653]
[1759422651781,1.10601058,120150.0,120140.0,0.702415]
[1759422651980,1.13281058,120150.0,120140.0,1.3458653]
[1759422652584,1.51099022,120150.0,120140.0,0.25843]
[1759422652773,2.60894537,120150.0,120140.0,0.213]
[1759422652978,1.96549507,120150.0,120140.0,0.213]
[1759422653180,2.60894537,120150.0,120140.0,0.213]
[1759422653380,2.66131538,120150.0,120140.0,0.213]
[1759422653673,2.63135686,120150.0,120140.0,0.213]
[1759422653876,2.66131538,120150.0,120140.0,0.213]
[1759422654073,2.65931538,120150.0,120140.0,0.21]
[1759422654277,2.66831538,120150.0,120140.0,0.21]
[1759422654477,3.42615538,120150.0,120140.0,0.21]
[1759422654891,3.41715538,120150.0,120140.0,0.21]
[1759422655187,3.42615538,120150.0,120140.0,0.21]
[1759422655377,3.37770089,120150.0,120140.0,0.03326999]
[1759422655581,3.3552894,120150.0,120140.0,0.03326999]
[1759422655884,0.083192,120130.0,120120.0,0.0161]
[1759422656084,1.86611478,120130.0,120120.0,0.1961]
[1759422656284,0.78638843,120130.0,120120.0,0.1961]
[1759422656483,1.54418843,120130.0,120120.0,0.1961]
[1759422656684,0.78638843,120130.0,120120.0,0.22526]
[1759422656880,1.54418843,120130.0,120120.0,0.22526]
[1759422657075,0.38163248,120130.0,120120.0,0.22526]
[1759422657280,1.14243248,120130.0,120120.0,0.54682395]
[1759422657687,1.6150938,120130.0,120120.0,0.22526]
[1759422657982,1.6120938,120130.0,120120.0,0.22526]
[1759422658187,1.6200938,120130.0,120120.0,0.22526]
[1759422658787,1.6120938,120130.0,120120.0,0.22526]
[1759422658990,0.53772985,120130.0,120120.0,0.22526]
[1759422659184,1.29556985,120130.0,120120.0,0.22526]
[1759422659387,1.6171338,120130.0,120120.0,0.22526]
[1759422659690,0.8592938,120130.0,120120.0,0.22526]
[1759422659990,1.6171338,120130.0,120120.0,0.22526]
[1759422660191,1.21237795,120130.0,120120.0,0.22526]
[1759422660387,1.21237795,120130.0,120120.0,0.54682395]
[1759422660585,1.6171338,120130.0,120120.0,0.22526]
[1759422660893,1.29556985,120130.0,120120.0,0.22526]
[1759422661279,1.6171338,120130.0,120120.0,0.22526]
[1759422661889,1.2592938,120130.0,120120.0,0.22526]
[1759422662091,2.0171338,120130.0,120120.0,0.22526]
[1759422662283,1.69556985,120130.0,120120.0,0.22526]
[1759422662788,0.93772985,120130.0,120120.0,0.22526]
[1759422663085,1.29556985,120130.0,120120.0,0.54682395]
[1759422664090,0.53772985,120130.0,120120.0,0.54682395]
[1759422664290,1.21237795,120130.0,120120.0,0.63002285]
[1759422664592,1.29556985,120130.0,120120.0,0.54682395]
[1759422666087,0.85157795,120130.0,120120.0,0.63002285]
[1759422666684,0.09373795,120130.0,120120.0,0.9515868]
[1759422666888,0.85153795,120130.0,120120.0,0.9515868]
[1759422667791,0.93472985,120130.0,120120.0,0.9515868]
[1759422667993,0.93477857,120130.0,120120.0,0.9515868]
[1759422668590,0.93477857,120130.0,120120.0,0.3084589]
[1759422668591,0.85158667,120130.0,120120.0,0.3084589]
[1759422668791,0.85158667,120130.0,120120.0,0.63002285]
[1759422669093,0.85158667,120130.0,120120.0,0.99082285]
[1759422669286,0.0258812,120130.0,120120.0,0.99082285]
[1759422669485,0.005,120130.0,120120.0,0.99082285]
[1759422669691,0.7628,120130.0,120120.0,1.3123868]
[1759422670193,0.02587978,120130.0,120120.0,1.3123868]
[1759422670394,0.78363893,120130.0,120120.0,1.3123868]
[1759422670593,0.78363893,120130.0,120120.0,0.6692589]
[1759422670594,0.86683083,120130.0,120120.0,0.6692589]
[1759422670895,0.86683083,120130.0,120120.0,1.3123868]
[1759422671686,0.02587893,120130.0,120120.0,1.3123868]
[1759422672197,0.86683083,120130.0,120120.0,1.3123868]
[1759422672590,0.02587893,120130.0,120120.0,1.3123868]
[1759422672793,0.86683083,120130.0,120120.0,1.3123868]
[1759422673191,0.10907083,120130.0,120120.0,1.3123868]
[1759422673391,0.86679083,120130.0,120120.0,1.3123868]
[1759422673588,0.86679083,120130.0,120120.0,0.63002285]
[1759422675795,0.86679083,120130.0,120120.0,0.3084589]
[1759422675986,0.86679083,120130.0,120120.0,0.63002285]
[1759422676589,0.86679083,120130.0,120120.0,0.3084589]
[1759422676789,1.22759083,120130.0,120120.0,0.63002285]
[1759422676986,0.86679083,120130.0,120120.0,0.63002285]
[1759422677788,0.86679083,120130.0,120120.0,0.3084589]
[1759422677993,0.88920354,120130.0,120120.0,0.63002285]
[1759422679495,1.25000354,120130.0,120120.0,0.63002285]
[1759422680199,0.49228354,120130.0,120120.0,0.63002285]
[1759422680500,1.14431893,120130.0,120120.0,0.63002285]
[1759422681399,0.78351893,120130.0,120120.0,0.63002285]
[1759422682393,0.78347893,120130.0,120120.0,0.9515868]
[1759422682598,0.86667083,120130.0,120120.0,0.9515868]
[1759422682801,0.86667083,120130.0,120120.0,0.63002285]
[1759422683102,1.22747083,120130.0,120120.0,0.63002285]
[1759422683603,1.22747083,120130.0,120120.0,0.3084589]
[1759422684100,1.54903478,120130.0,120120.0,0.3084589]
[1759422684801,1.22747083,120130.0,120120.0,0.3084589]
[1759422685896,1.94903478,120130.0,120120.0,0.22526]
[1759422686195,1.94903478,120130.0,120120.0,0.1961]
[1759422686595,1.19143478,120130.0,120120.0,0.22388]
[1759422686799,1.94899478,120130.0,120120.0,0.22388]
[1759422687004,1.94899478,120130.0,120120.0,0.3070789]
[1759422687404,1.94899478,120130.0,120120.0,0.22388]
[1759422688406,1.94899478,120130.0,120120.0,0.1961]
[1759422689004,2.27055873,120130.0,120120.0,0.18]
[1759422689303,2.29297144,120130.0,120120.0,0.11019]
[1759422689707,2.29297144,120130.0,120120.0,0.01739]
[1759422689908,0.0832058,120110.0,120100.0,0.00363149]
[1759422690106,1.90476868,120110.0,120100.0,0.19363149]
[1759422690309,2.30476868,120110.0,120100.0,0.19363149]
[1759422691198,1.55024868,120110.0,120100.0,0.22141149]
[1759422691402,3.99620868,120110.0,120100.0,0.22141149]
[1759422692804,3.99636868,120110.0,120100.0,0.22141149]
[1759422693010,3.99636868,120110.0,120100.0,0.19363149]
[1759422693811,2.30780868,120110.0,120100.0,0.19363149]
[1759422694011,1.55024868,120110.0,120100.0,0.19363149]
[1759422694211,2.30780868,120110.0,120100.0,0.19363149]
[1759422694910,1.55024868,120110.0,120100.0,0.22141149]
[1759422695111,2.30780868,120110.0,120100.0,0.22141149]
[1759422695910,2.28692975,120110.0,120100.0,0.22141149]
[1759422696410,2.28692975,120110.0,120100.0,0.19363149]
[1759422696715,2.308036,120110.0,120100.0,0.19363149]
[1759422697116,2.33799452,120110.0,120100.0,0.19363149]
[1759422697712,2.65955847,120110.0,120090.0,0.01619]
[1759422698016,1.50957337,120100.0,120090.0,0.0391038]
[1759422698219,0.0832197,120090.0,120080.0,0.01739]
[1759422698411,1.5442499,120090.0,120080.0,0.20739]
[1759422698612,2.26581385,120090.0,120080.0,0.20739]
[1759422698807,1.50825385,120090.0,120080.0,0.20739]
[1759422699012,3.95457385,120090.0,120080.0,0.20739]
[1759422699413,3.96282552,120090.0,120080.0,0.20739]
[1759422699619,1.51650552,120090.0,120080.0,0.20739]
[1759422699820,3.96286552,120090.0,120080.0,0.20739]
[1759422700725,3.97886552,120090.0,120080.0,0.20739]